fUST/lending_fUST_20260225
["ID","MTS","AMOUNT","RATE_DAILY","PERIOD"]
[406638267,1772005838661,-800.0,0.00032801,35]
[406638268,1772005838670,-168.0,0.0003292,2]
[406638269,1772005838681,-168.0,0.00032969,2]
[406638270,1772005838690,-500.0,0.00032979,35]
[406638271,1772005838700,-1943.2643785,0.00033077,2]
[406638272,1772005838710,-258.0,0.00033079,120]
[406638273,1772005838719,-171.0,0.00033325,2]
[406638274,1772005838728,-766.038006,0.000334,15]
[406638275,1772005838738,-800.0,0.0003397,37]
[406638276,1772005838747,-433.6008919,0.00034078,2]
[406638277,1772005838757,-242.9,0.0003416,7]
[406638278,1772005838766,-160.117719,0.00034255,2]
[406638279,1772005838775,-430.0,0.00034293,2]
[406638280,1772005838785,-194.75331075,0.00034352,38]
[406638281,1772005838794,-231.052,0.00034352,38]
[406638282,1772005838803,-414.98121039,0.00034647,2]
[406638283,1772005838813,-800.0,0.0003488,40]
[406638284,1772005838822,-274.30463504,0.00035,2]
[406638285,1772005838831,-511.7059,0.00035,2]
[406638286,1772005838841,-511.7041,0.00035,4]
[406638287,1772005838850,-285.0,0.00035079,120]
[406638288,1772005838859,-487.0,0.0003526,2]
[406638289,1772005838869,-487.0,0.0003526,2]
[406638290,1772005838879,-487.0,0.0003526,2]
[406638291,1772005838889,-487.0,0.0003526,2]
[406638292,1772005838898,-487.0,0.0003526,2]
[406638293,1772005838907,-487.0,0.0003526,2]
[406638294,1772005838917,-487.0,0.0003526,2]
[406638295,1772005838926,-487.0,0.0003526,2]
[406638296,1772005838935,-487.0,0.0003526,2]
[406638297,1772005838944,-487.0,0.0003526,2]
[406638298,1772005838954,-487.0,0.0003526,2]
[406638299,1772005838963,-487.0,0.0003526,2]
[406638300,1772005838972,-487.0,0.0003526,2]
[406638301,1772005838981,-914.22,0.0003526,2]
[406638302,1772005838991,-200.0,0.00035498,39]
[406638303,1772005839000,-800.0,0.0003553,41]
[406638304,1772005839010,-657.52,0.00035606,3]
[406638305,1772005839019,-1000.0,0.00035616,120]
[406638306,1772005839029,-368.65221127,0.00035616,7]
[406638307,1772005839038,-603.59469408,0.00035695,2]
[406638308,1772005839048,-185.7015537,0.00035695,2]
[406638309,1772005839057,-219.17,0.00035909,3]
[406638310,1772005839066,-800.0,0.00035919,42]
[406638311,1772005839076,-160.117719,0.00035967,2]
[406638312,1772005839085,-1501.0,0.00036,8]
[406638313,1772005839095,-251.93686811,0.00036,30]
[406638314,1772005839104,-800.0,0.00036049,43]
[406638315,1772005839113,-242.9,0.00036142,30]
[406638316,1772005839123,-800.0,0.00036179,43]
[406638317,1772005839132,-206.29969817,0.0003621,2]
[406638318,1772005839141,-268.32167625,0.0003624,2]
[406638319,1772005839151,-151.0,0.000363,16]
[406638320,1772005839161,-253.89965751,0.00036303,2]
[406638321,1772005839172,-1692.72383989,0.0003632,2]
[406638322,1772005839182,-500.0,0.00036329,36]
[406638323,1772005839192,-1692.72383989,0.00036333,2]
[406638324,1772005839204,-1692.72383989,0.00036345,2]
[406638325,1772005839213,-1692.72383989,0.00036358,2]
[406638326,1772005839222,-1692.72383989,0.0003637,2]
[406638327,1772005839232,-500.0,0.0003642,37]
[406638328,1772005839242,-22168.5893689,0.0003642,3]
[406638329,1772005839251,-500.0,0.00036429,38]
[406638330,1772005839260,-500.0,0.00036429,39]
[406638331,1772005839270,-500.0,0.00036429,40]
[406638332,1772005839279,-500.0,0.00036429,41]
[406638333,1772005839289,-500.0,0.00036429,42]
[406638334,1772005839299,-500.0,0.00036429,43]
[406638335,1772005839309,-500.0,0.00036429,44]
[406638336,1772005839318,-500.0,0.00036429,45]
[406638337,1772005839331,-500.0,0.00036429,46]
[406638338,1772005839341,-500.0,0.00036429,47]
[406638339,1772005839351,-274.64959968,0.00036429,48]
[406638340,1772005839361,-472438.01712365,0.0003643,2]
[406638341,1772005839804,-13621.49673499,0.0003643,2]
[406638342,1772005839820,-1629.04971599,0.0003643,2]
[406638347,1772005840453,-500.0,0.00028589,2]
[406638348,1772005840463,-500.0,0.00028589,2]
[406638349,1772005840472,-574.49242856,0.00028589,2]
[406638350,1772005840482,-197.16680764,0.00028589,2]
[406638351,1772005840492,-500.0,0.00028589,2]
[406638352,1772005840502,-500.0,0.00028589,2]
[406638353,1772005840512,-500.0,0.00028589,2]
[406638354,1772005840521,-500.0,0.00028589,2]
[406638355,1772005840531,-500.0,0.00028589,2]
[406638356,1772005840540,-500.0,0.00028589,2]
[406638357,1772005840550,-374.30380069,0.00028589,2]
[406638358,1772005840561,-125.69619931,0.00028589,2]
[406638359,1772005840570,-126.26436309,0.00028589,2]
[406638363,1772005843189,-373.73563691,0.00028589,2]
[406638364,1772005843198,-194.61820563,0.00028589,2]
[406638366,1772005845955,-305.38179437,0.00028589,2]
[406638367,1772005845965,-308.39391956,0.00028589,2]
[406638368,1772006108105,1003.14,0.000125,2]
[406638395,1772006845121,-200.0,0.00013699,2]
[406638396,1772006845144,-150.0,0.00013699,2]
[406638397,1772006845163,-123.67327033,0.00013699,2]
[406638399,1772006891158,-454.98204029,0.00013699,2]
[406638400,1772006891180,-200.0,0.00014731,2]
[406638401,1772006891202,-374.34078752,0.00015217,2]
[406638402,1772006891223,-177.0,0.00015699,2]
[406638403,1772006901527,-204.0,0.00017699,2]
[406638404,1772006909166,-231.0,0.00019699,2]
[406638488,1772007032521,-258.0,0.00021699,2]
[406638490,1772007032531,-285.0,0.00023699,2]
[406638492,1772007032540,-2037.12,0.00024842,10]
[406638493,1772007032550,-1697.6,0.00024842,10]
[406638495,1772007032559,-300.0,0.00024851,2]
[406638496,1772007032568,-300.0,0.00024851,2]
[406638497,1772007032578,-616.0,0.00024851,2]
[406638498,1772007032587,-789.00114731,0.00024852,2]
[406638499,1772007032595,-789.00114731,0.00024852,2]
[406638500,1772007032605,-789.00114731,0.00024852,2]
[406638501,1772007032614,-789.00114731,0.00024852,2]
[406638502,1772007032623,-789.00114731,0.00024852,2]
[406638503,1772007032633,-789.00114731,0.00024852,2]
[406638504,1772007032643,-789.00114731,0.00024852,2]
[406638505,1772007032652,-789.00114731,0.00024852,2]
[406638506,1772007032661,-789.00114731,0.00024852,2]
[406638507,1772007032670,-789.00114731,0.00024852,2]
[406638508,1772007032680,-789.00114731,0.00024852,2]
[406638509,1772007032689,-789.00114731,0.00024852,2]
[406638510,1772007032700,-789.00114731,0.00024852,2]
[406638511,1772007032712,-789.00114731,0.00024852,2]
[406638512,1772007032721,-789.00114731,0.00024852,2]
[406638513,1772007032731,-789.00114731,0.00024852,2]
[406638514,1772007032740,-789.00114731,0.00024852,2]
[406638515,1772007032750,-789.00114731,0.00024852,2]
[406638516,1772007032760,-789.00114731,0.00024852,2]
[406638517,1772007032770,-368.31256861,0.00024852,2]
[406638534,1772007038749,-272.98785264,0.00024853,2]
[406638536,1772007038759,-554.07509457,0.00024853,2]
[406638556,1772007038940,-46994.78687885,0.00024853,2]
[406638558,1772007038951,-9090.94054571,0.00025,2]
[406638560,1772007038961,-1511.60076226,0.00025689,2]
[406638562,1772007038971,-164.692592,0.00025999,2]
[406638564,1772007038980,-420.0,0.00026926,2]
[406638566,1772007038990,-151.685089,0.00027397,2]
[406638568,1772007039000,-151.685089,0.00027397,2]
[406638570,1772007039010,-151.685089,0.00027397,2]
[406638572,1772007039019,-151.685089,0.00027397,2]
[406638574,1772007039029,-500.0,0.00028586,2]
[406638576,1772007039039,-500.0,0.00028586,2]
[406638578,1772007039048,-500.0,0.00028588,2]
[406638580,1772007039058,-600.0,0.00029158,30]
[406638582,1772007039069,-300.0,0.0003,120]
[406638584,1772007039079,-161.84849338,0.00030081,14]
[406638586,1772007039088,-162.0,0.00030292,2]
[406638588,1772007039097,-744.54351979,0.00030726,2]
[406638590,1772007039107,-429.0,0.00031911,2]
[406638592,1772007039117,-728.0,0.00031911,2]
[406638594,1772007039127,-300.0,0.00032,120]
[406638596,1772007039136,-720.0,0.00032074,30]
[406638598,1772007039145,-162.0,0.00032265,5]
[406638600,1772007039154,-287.62503033,0.00032466,14]
[406638602,1772007039164,-169.66177447,0.000332,117]
[406638604,1772007039174,-169.66177447,0.00033471,118]
[406638606,1772007039184,-307.71784475,0.00033497,2]
[406638608,1772007039194,-400.0,0.00034,120]
[406638610,1772007039203,-162.0,0.00034239,7]
[406638612,1772007039213,-184.841,0.00034367,38]
[406638614,1772007039222,-728.0,0.00034911,2]
[406638616,1772007039231,-331.0744423,0.0003526,2]
[406638618,1772007039241,-864.0,0.00035281,30]
[406638620,1772007039250,-1000.0,0.00035616,120]
[406638622,1772007039260,-258.05654789,0.00035616,7]
[406638623,1772007039269,-800.0,0.00035706,7]
[406638625,1772007039278,-220.02355034,0.00035851,7]
[406638627,1772007039287,-227.0611645,0.00035956,2]
[406638629,1772007039297,-227.06116449,0.00035959,2]
[406638631,1772007039308,-227.06116449,0.00035961,2]
[406638634,1772007039317,-227.06116449,0.00035964,2]
[406638635,1772007039326,-227.06116449,0.00035966,2]
[406638637,1772007039336,-755.80038113,0.0003599,3]
[406638640,1772007039345,-18901.883375,0.00036,2]
[406638641,1772007039355,-500.0,0.00036,120]
[406638643,1772007039365,-151.685089,0.00036,31]
[406638645,1772007039373,-151.685089,0.00036,31]
[406638647,1772007039382,-151.685089,0.00036,31]
[406638649,1772007039392,-151.685089,0.00036,31]
[406638651,1772007039401,-438.34,0.00036046,3]
[406638653,1772007039410,-12848.6064792,0.00036056,3]
[406638655,1772007039419,-211.76558598,0.00036056,3]
[406638657,1772007039428,-460.75665525,0.00036056,3]
[406638659,1772007039439,-62347.2037035,0.00036066,2]
[406638903,1772007043467,-70595.04316486,0.00036066,2]
[406638905,1772007043479,-666.48382913,0.00036066,2]
[406638964,1772007044038,-3390.77766706,0.00036066,2]
[406639183,1772007046432,-1341.4590057,0.00036066,2]
[406639189,1772007046489,-949.1617561,0.00036066,2]
[406639197,1772007086996,-500.0,0.00013699,2]
[406639198,1772007087018,-1093.34433527,0.00014247,2]
[406639344,1772008238572,-300.0,0.00024596,2]
[406639346,1772008238581,-7869.6263778,0.00024894,2]
[406639348,1772008238591,-499.99999901,0.00025,2]
[406639349,1772008238600,-272.36151149,0.00025497,2]
[406639352,1772008238609,-195.66666668,0.00025595,2]
[406639354,1772008238619,-331.54216113,0.00025695,2]
[406639356,1772008238628,-500.0,0.00025695,2]
[406639358,1772008238638,-500.0,0.00025695,2]
[406639360,1772008238647,-500.0,0.00025695,2]
[406639362,1772008238656,-500.0,0.00025695,2]
[406639363,1772008238665,-500.0,0.00025695,2]
[406639364,1772008238674,-317.59252503,0.00025695,2]
[406639365,1772008238683,-500.0,0.00025695,2]
[406639366,1772008238692,-500.0,0.00025695,2]
[406639367,1772008238702,-500.0,0.00025695,2]
[406639368,1772008238711,-500.0,0.00025695,2]
[406639369,1772008238720,-500.0,0.00025695,2]
[406639370,1772008238730,-500.0,0.00025695,2]
[406639371,1772008238739,-500.0,0.00025695,2]
[406639372,1772008238748,-500.0,0.00025695,2]
[406639373,1772008238757,-500.0,0.00025695,2]
[406639374,1772008238766,-500.0,0.00025695,2]
[406639375,1772008238776,-500.0,0.00025695,2]
[406639376,1772008238786,-500.0,0.00025695,2]
[406639377,1772008238796,-500.0,0.00025695,2]
[406639378,1772008238805,-500.0,0.00025695,2]
[406639379,1772008238815,-500.0,0.00025695,2]
[406639380,1772008238824,-500.0,0.00025695,2]
[406639381,1772008238834,-500.0,0.00025695,2]
[406639382,1772008238843,-500.0,0.00025695,2]
[406639383,1772008238853,-500.0,0.00025695,2]
[406639384,1772008238862,-500.0,0.00025695,2]
[406639385,1772008238873,-500.0,0.00025695,2]
[406639386,1772008238882,-500.0,0.00025695,2]
[406639387,1772008238892,-500.0,0.00025695,2]
[406639388,1772008238901,-500.0,0.00025695,2]
[406639389,1772008238910,-500.0,0.00025695,2]
[406639390,1772008238920,-500.0,0.00025695,2]
[406639391,1772008238929,-500.0,0.00025695,2]
[406639392,1772008238940,-230.93518296,0.00025695,2]
[406639393,1772008238949,-500.0,0.00025695,2]
[406639394,1772008238959,-452.89176533,0.00025695,2]
[406639395,1772008238971,-47.10823467,0.00025695,2]
[406639396,1772008238981,-500.0,0.00025695,2]
[406639397,1772008238990,-500.0,0.00025695,2]
[406639398,1772008238999,-500.0,0.00025695,2]
[406639399,1772008239009,-500.0,0.00025695,2]
[406639400,1772008239019,-500.0,0.00025695,2]
[406639401,1772008239029,-500.0,0.00025695,2]
[406639402,1772008239038,-111.23216758,0.00025695,2]
[406639450,1772008243537,-388.76783242,0.00025695,2]
[406639451,1772008243547,-500.0,0.00025695,2]
[406639452,1772008243557,-500.0,0.00025695,2]
[406639453,1772008243566,-500.0,0.00025695,2]
[406639454,1772008243576,-500.0,0.00025695,2]
[406639455,1772008243587,-500.0,0.00025695,2]
[406639456,1772008243596,-500.0,0.00025695,2]
[406639457,1772008243606,-500.0,0.00025695,2]
[406639458,1772008243616,-500.0,0.00025695,2]
[406639459,1772008243627,-500.0,0.00025695,2]
[406639460,1772008243637,-500.0,0.00025695,2]
[406639461,1772008243646,-500.0,0.00025695,2]
[406639462,1772008243656,-500.0,0.00025695,2]
[406639463,1772008243665,-500.0,0.00025695,2]
[406639464,1772008243674,-361.53389413,0.00025695,2]
[406639465,1772008243710,-138.46610587,0.00025695,2]
[406639466,1772008243720,-500.0,0.00025695,2]
[406639467,1772008243730,-500.0,0.00025695,2]
[406639468,1772008243739,-261.74059936,0.00025695,2]
[406639472,1772008246369,-238.25940064,0.00025695,2]
[406639473,1772008246380,-500.0,0.00025695,2]
[406639474,1772008246390,-179.18850012,0.00025695,2]
[406639475,1772008246400,-233.2647166,0.00025695,2]
[406639494,1772008845692,1218.97204566,0.00012,10]
[406639495,1772008845733,3969.11795434,0.00012,10]
[406639516,1772009212114,-276.52534847,0.00024081,2]
[406639522,1772009403163,10000.0,9.501e-05,2]
[406639551,1772009432638,-2951.05587231,0.00023602,2]
[406639561,1772009438441,-1018.40100736,0.00023602,2]
[406639562,1772009438453,-412.47389539,0.0002384,2]
[406639563,1772009438466,-150.0,0.00024203,2]
[406639564,1772009438475,-296.6732703,0.00024435,2]
[406639565,1772009438485,-1340.0069806,0.0002457,2]
[406639566,1772009438495,-3312.44484635,0.00025,7]
[406639567,1772009438506,-1089.72763291,0.00025,7]
[406639568,1772009438515,-180.26624668,0.000254,2]
[406639569,1772009438525,-234.005927,0.00025518,2]
[406639570,1772009438534,-515.57859737,0.00025591,2]
[406639571,1772009438544,-1414.67,0.00025681,10]
[406639572,1772009438553,-1178.89,0.00025681,10]
[406639573,1772009438562,-835.18429426,0.00025691,2]
[406639574,1772009438571,-232.07951279,0.00025691,2]
[406639575,1772009438581,-602.79215896,0.00025691,2]
[406639576,1772009438590,-500.0,0.00025691,2]
[406639577,1772009438600,-500.0,0.00025691,2]
[406639578,1772009438609,-720.97461678,0.00025691,2]
[406639579,1772009438618,-420.19433839,0.00025691,2]
[406639580,1772009438631,-79.80566161,0.00025691,2]
[406639581,1772009438640,-358.99279811,0.00025691,2]
[406639582,1772009438650,-500.0,0.00025691,2]
[406639583,1772009438659,-500.0,0.00025691,2]
[406639584,1772009438668,-500.0,0.00025691,2]
[406639585,1772009438678,-500.0,0.00025691,2]
[406639586,1772009438687,-500.0,0.00025691,2]
[406639587,1772009438697,-720.97461678,0.00025691,2]
[406639588,1772009438706,-500.0,0.00025691,2]
[406639589,1772009438715,-500.0,0.00025691,2]
[406639590,1772009438725,-500.0,0.00025691,2]
[406639591,1772009438735,-720.97461678,0.00025691,2]
[406639592,1772009438744,-500.0,0.00025691,2]
[406639593,1772009438754,-720.97461678,0.00025691,2]
[406639594,1772009438764,-583.66789429,0.00025691,2]
[406639595,1772009438774,-409.00334873,0.00025691,2]
[406639596,1772009438783,-500.0,0.00025691,2]
[406639597,1772009438793,-500.0,0.00025691,2]
[406639598,1772009438803,-188.97547915,0.00025691,2]
[406639599,1772009438814,-500.0,0.00025691,2]
[406639600,1772009438824,-720.97461678,0.00025691,2]
[406639601,1772009438833,-500.0,0.00025691,2]
[406639602,1772009438843,-500.0,0.00025691,2]
[406639603,1772009438853,-720.97461678,0.00025691,2]
[406639604,1772009438862,-500.0,0.00025691,2]
[406639605,1772009438872,-500.0,0.00025691,2]
[406639606,1772009438881,-500.0,0.00025691,2]
[406639607,1772009438891,-500.0,0.00025691,2]
[406639608,1772009438900,-720.97461678,0.00025691,2]
[406639609,1772009438911,-500.0,0.00025691,2]
[406639610,1772009438922,-500.0,0.00025691,2]
[406639611,1772009438932,-500.0,0.00025691,2]
[406639612,1772009438943,-720.97461678,0.00025691,2]
[406639613,1772009438952,-500.0,0.00025691,2]
[406639614,1772009438963,-500.0,0.00025691,2]
[406639615,1772009438973,-500.0,0.00025691,2]
[406639616,1772009438982,-500.0,0.00025691,2]
[406639617,1772009438992,-500.0,0.00025691,2]
[406639618,1772009439001,-500.0,0.00025691,2]
[406639619,1772009439011,-500.0,0.00025691,2]
[406639620,1772009439021,-720.97461678,0.00025691,2]
[406639621,1772009439031,-500.0,0.00025691,2]
[406639622,1772009439040,-500.0,0.00025691,2]
[406639623,1772009439051,-720.97461678,0.00025691,2]
[406639624,1772009439060,-500.0,0.00025691,2]
[406639625,1772009439070,-500.0,0.00025691,2]
[406639626,1772009439080,-500.0,0.00025691,2]
[406639627,1772009439090,-720.97461678,0.00025691,2]
[406639628,1772009439099,-500.0,0.00025691,2]
[406639629,1772009439109,-720.97461678,0.00025691,2]
[406639630,1772009439118,-250.0,0.00025691,2]
[406639631,1772009439128,-720.97461678,0.00025691,2]
[406639632,1772009439138,-612.45208121,0.00025691,2]
[406639633,1772009439148,-720.97461678,0.00025691,2]
[406639634,1772009439157,-500.0,0.00025691,2]
[406639635,1772009439167,-500.0,0.00025691,2]
[406639636,1772009439180,-720.97461678,0.00025691,2]
[406639637,1772009439190,-500.0,0.00025691,2]
[406639638,1772009439200,-720.97461678,0.00025691,2]
[406639639,1772009439210,-500.0,0.00025691,2]
[406639640,1772009439219,-720.97461678,0.00025691,2]
[406639641,1772009439228,-500.0,0.00025691,2]
[406639642,1772009439238,-720.97461678,0.00025691,2]
[406639643,1772009439247,-500.0,0.00025691,2]
[406639644,1772009439428,-500.0,0.00025691,2]
[406639645,1772009439438,-720.97461678,0.00025691,2]
[406639646,1772009439447,-720.97461678,0.00025691,2]
[406639647,1772009439460,-720.97461678,0.00025691,2]
[406639648,1772009439470,-720.97461678,0.00025691,2]
[406639649,1772009439479,-720.97461678,0.00025691,2]
[406639650,1772009439489,-720.97461678,0.00025691,2]
[406639651,1772009439499,-720.97461678,0.00025691,2]
[406639652,1772009439509,-720.97461678,0.00025691,2]
[406639653,1772009439519,-720.97461678,0.00025691,2]
[406639654,1772009439529,-720.97461678,0.00025691,2]
[406639655,1772009439538,-720.97461678,0.00025691,2]
[406639656,1772009439547,-720.97461678,0.00025691,2]
[406639657,1772009439557,-720.97461678,0.00025691,2]
[406639658,1772009439567,-720.97461678,0.00025691,2]
[406639659,1772009439576,-720.97461678,0.00025691,2]
[406639660,1772009439586,-720.97461678,0.00025691,2]
[406639661,1772009439595,-720.97461678,0.00025691,2]
[406639662,1772009439604,-720.97461678,0.00025691,2]
[406639663,1772009439614,-720.97461678,0.00025691,2]
[406639664,1772009439623,-720.97461678,0.00025691,2]
[406639665,1772009439633,-720.97461678,0.00025691,2]
[406639666,1772009439643,-720.97461678,0.00025691,2]
[406639667,1772009439652,-720.97461678,0.00025691,2]
[406639668,1772009439662,-720.97461678,0.00025691,2]
[406639669,1772009439672,-720.97461678,0.00025691,2]
[406639670,1772009439682,-720.97461678,0.00025691,2]
[406639671,1772009439691,-720.97461678,0.00025691,2]
[406639672,1772009439701,-720.97461678,0.00025691,2]
[406639673,1772009439710,-720.97461678,0.00025691,2]
[406639674,1772009439720,-720.97461678,0.00025691,2]
[406639675,1772009439729,-720.97461678,0.00025691,2]
[406639676,1772009439738,-720.97461678,0.00025691,2]
[406639677,1772009439747,-720.97461678,0.00025691,2]
[406639678,1772009439756,-720.97461678,0.00025691,2]
[406639679,1772009439766,-720.97461678,0.00025691,2]
[406639680,1772009439775,-720.97461678,0.00025691,2]
[406639681,1772009439784,-720.97461678,0.00025691,2]
[406639682,1772009439793,-720.97461678,0.00025691,2]
[406639683,1772009439802,-720.97461678,0.00025691,2]
[406639684,1772009439812,-720.97461678,0.00025691,2]
[406639685,1772009439822,-720.97461678,0.00025691,2]
[406639686,1772009439831,-720.97461678,0.00025691,2]
[406639687,1772009439840,-718.39970744,0.00025691,2]
[406639688,1772009439850,-718.39970744,0.00025691,2]
[406639689,1772009439860,-718.39970744,0.00025691,2]
[406639690,1772009439869,-718.39970744,0.00025691,2]
[406639691,1772009439878,-718.39970744,0.00025691,2]
[406639692,1772009439887,-718.39970744,0.00025691,2]
[406639693,1772009439896,-718.39970744,0.00025691,2]
[406639694,1772009439906,-718.39970744,0.00025691,2]
[406639695,1772009439915,-718.39970744,0.00025691,2]
[406639696,1772009439924,-718.39970744,0.00025691,2]
[406639697,1772009439933,-718.39970744,0.00025691,2]
[406639698,1772009439943,-718.39970744,0.00025691,2]
[406639699,1772009439952,-718.39970744,0.00025691,2]
[406639700,1772009439962,-718.39970744,0.00025691,2]
[406639701,1772009439971,-718.39970744,0.00025691,2]
[406639702,1772009439980,-718.39970744,0.00025691,2]
[406639703,1772009439989,-718.39970744,0.00025691,2]
[406639704,1772009439998,-718.39970744,0.00025691,2]
[406639705,1772009440007,-718.39970744,0.00025691,2]
[406639706,1772009440016,-718.39970744,0.00025691,2]
[406639707,1772009440025,-718.39970744,0.00025691,2]
[406639708,1772009440034,-718.39970744,0.00025691,2]
[406639709,1772009440043,-500.0,0.00025691,2]
[406639710,1772009440053,-718.39970744,0.00025691,2]
[406639711,1772009440062,-500.0,0.00025691,2]
[406639713,1772009440072,-500.0,0.00025691,2]
[406639714,1772009440081,-718.39970744,0.00025691,2]
[406639716,1772009440090,-500.0,0.00025691,2]
[406639718,1772009440100,-500.0,0.00025691,2]
[406639720,1772009440109,-718.39970744,0.00025691,2]
[406639721,1772009440118,-500.0,0.00025691,2]
[406639722,1772009440128,-500.0,0.00025691,2]
[406639723,1772009440137,-718.39970744,0.00025691,2]
[406639724,1772009440146,-500.0,0.00025691,2]
[406639725,1772009440156,-500.0,0.00025691,2]
[406639726,1772009440166,-718.39970744,0.00025691,2]
[406639727,1772009440175,-500.0,0.00025691,2]
[406639728,1772009440184,-500.0,0.00025691,2]
[406639729,1772009440194,-500.0,0.00025691,2]
[406639730,1772009440203,-500.0,0.00025691,2]
[406639731,1772009440213,-500.0,0.00025691,2]
[406639732,1772009440222,-718.39970744,0.00025691,2]
[406639733,1772009440232,-500.0,0.00025691,2]
[406639734,1772009440242,-500.0,0.00025691,2]
[406639735,1772009440252,-500.0,0.00025691,2]
[406639736,1772009440262,-500.0,0.00025691,2]
[406639737,1772009440271,-500.0,0.00025691,2]
[406639738,1772009440281,-500.0,0.00025691,2]
[406639740,1772009440291,-500.0,0.00025691,2]
[406639741,1772009440301,-500.0,0.00025691,2]
[406639742,1772009440310,-500.0,0.00025691,2]
[406639743,1772009440321,-500.0,0.00025691,2]
[406639744,1772009440330,-500.0,0.00025691,2]
[406639745,1772009440339,-500.0,0.00025691,2]
[406639746,1772009440349,-543.77756617,0.00025691,2]
[406639747,1772009440358,-299.78511787,0.00025691,2]
[406639748,1772009440368,-500.0,0.00025691,2]
[406639749,1772009440379,-500.0,0.00025691,2]
[406639750,1772009440389,-500.0,0.00025691,2]
[406639751,1772009440398,-500.0,0.00025691,2]
[406639752,1772009440408,-500.0,0.00025691,2]
[406639753,1772009440417,-500.0,0.00025691,2]
[406639754,1772009440426,-500.0,0.00025691,2]
[406639755,1772009440437,-500.0,0.00025691,2]
[406639756,1772009440446,-500.0,0.00025691,2]
[406639757,1772009440456,-500.0,0.00025691,2]
[406639758,1772009440469,-500.0,0.00025691,2]
[406639759,1772009440478,-500.0,0.00025691,2]
[406639760,1772009440488,-500.0,0.00025691,2]
[406639762,1772009440497,-272.83775722,0.00025691,2]
[406639763,1772009440506,-500.0,0.00025694,2]
[406639764,1772009440515,-500.0,0.00025694,2]
[406639765,1772009440525,-500.0,0.00025694,2]
[406639766,1772009440534,-500.0,0.00025694,2]
[406639767,1772009440543,-500.0,0.00025694,120]
[406639768,1772009440553,-500.0,0.00025694,120]
[406639769,1772009440562,-500.0,0.00025694,120]
[406639770,1772009440572,-1243.58960546,0.00025695,2]
[406639771,1772009440581,-10257.3614546,0.00025695,2]
[406639772,1772009440590,-11114.626386,0.00025695,2]
[406639774,1772009440600,-1341.4590057,0.00025695,2]
[406639775,1772009440609,-151.0,0.00025695,2]
[406639777,1772009440618,-151.0,0.00025695,2]
[406639779,1772009440628,-500.0,0.00025968,2]
[406639780,1772009440638,-725.86596556,0.00026035,2]
[406639781,1772009440647,-156.17013,0.00026135,2]
[406639782,1772009440656,-175.812837,0.00026135,2]
[406639783,1772009440665,-2975.97466961,0.00026135,2]
[406639807,1772009443765,-1822.14555436,0.00026135,2]
[406639845,1772009842189,-500.0,0.00013273,2]
[406639846,1772009842212,-612.12899041,0.00013273,2]
[406639847,1772009842234,-150.0,0.00013547,2]
[406639848,1772009842254,-1000.0,0.00013821,2]
[406639849,1772009842274,-1308.2106868,0.00014368,2]
[406639850,1772009842297,-151.0,0.00015113,2]
[406639851,1772009842319,-177.0,0.00015547,2]
[406639852,1772009842340,-163.29,0.00015903,2]
[406639853,1772009842362,-204.0,0.00017547,2]
[406639854,1772009842383,-231.0,0.00019547,2]
[406639906,1772010199613,18.935105,0.000142,60]
[406639907,1772010199639,2300.0,0.000142,60]
[406639908,1772010199665,2300.0,0.000142,60]
[406639909,1772010199695,2300.0,0.000142,60]
[406639949,1772010351441,3542.62,0.000157,120]